Cogmind - Beta 12 @@@ ROGUE MODE // 2023.03.06 @ 08:18:00 Player: ArabianSandBoa Result: Self-destructed Performance ------------- Evolutions (5) 2500 Regions Visited (12) 2400 Robots Destroyed (19) 95 Value Destroyed (296) 296 Prototype IDs (5) 100 Alien Tech Used (1) 200 Bonus (1188) 1188 TOTAL SCORE: 6779 Bonus ------- Follower Combat Kills 114 Entered DSFs 500 Met Imprinter 300 Was Imprinted 300 Friendly Fire -26 Cogmind --------- Core Integrity 483/1000 Matter 251/300 Energy 49/100 System Corruption 1% Temperature Cool (0) Movement Core (350) Ox6 Location -5/Warlord Parts ------- > --- POWER (2) -------- (None) > --- PROPULSION (6) --- (None) > --- UTILITY (7) ------ Large Storage Unit Advanced Signal Interpreter Makeshift Hacking Suite > --- WEAPON (2) ------- (None) > --- INVENTORY (15) --- Makeshift Power Source Improved Particle Charger Improved Kinecellerator Experimental Weapon Shielding Makeshift Armor Plating Makeshift Armor Plating Makeshift Armor Plating Precision Beam Rifle Precision Beam Rifle Improved Proton Missile Launcher Blade Saw CR-A16's Pointy Stick Signal Generator Signal Generator GAL Module Peak State ------------ > --- POWER ------------ Neutrino Core > --- PROPULSION ------- Flight Unit Improved Flight Unit Makeshift Flight Unit Makeshift Flight Unit Makeshift Flight Unit > --- UTILITY ---------- Improved Particle Charger Experimental Weapon Shielding Makeshift Armor Plating Makeshift Armor Plating Makeshift Armor Plating Makeshift Hacking Suite Hacking Drone Bay > --- WEAPON ----------- Precision Beam Rifle Precision Beam Rifle > --- INVENTORY -------- Improved Proton Missile Launcher Blade Saw Blade Saw CR-A16's Pointy Stick GAL Module [Rating: 68] Favorites ----------- Power Light Ion Engine Engine Light Ion Engine Power Core Neutrino Core Propulsion Flight Unit Leg Aluminum Leg Wheel Compact Wheel Flight Unit Flight Unit Utility Improved Targeting Computer Device Hacking Drone Bay Storage Large Storage Unit Processor Improved Targeting Computer Hackware Makeshift Hacking Suite Protection Makeshift Armor Plating Weapon Precision Beam Rifle Energy Gun Precision Beam Rifle Impact Weapon Makeshift Hammer Slashing Weapon Blade Saw Build | -11 -10 -10 -9 -9 -7 -6 -6 -6 -5 -5 -5 -5 ------- Run | Jun Mat Min Mat Min Zio Pro Fac DSF Fac Upp Upp War Slots Evolved 10 | . . . 2 . . . 6 . 2 . . . Power 1 | . . . . . . . 1 . . . . . Propulsion 4 | . . . 2 . . . 2 . . . . . Utility 5 | . . . . . . . 3 . 2 . . . Weapon . | . . . . . . . . . . . . . Parts Attached 42 | 1 5 4 8 . 4 . 2 3 . 7 7 1 Power 4 | . . 1 . . 1 . . . . 1 1 . Engine 3 | . . 1 . . 1 . . . . . 1 . Core 1 | . . . . . . . . . . 1 . . Reactor . | . . . . . . . . . . . . . Propulsion 12 | . 2 2 2 . 1 . . . . 3 2 . Treads . | . . . . . . . . . . . . . Leg . | . . . . . . . . . . . . . Wheel 1 | . 1 . . . . . . . . . . . Hover . | . . . . . . . . . . . . . Flight 11 | . 1 2 2 . 1 . . . . 3 2 . Utility 18 | . 3 1 2 . 2 . 2 3 . 3 2 . Device 6 | . 1 . . . 2 . 1 2 . . . . Storage 2 | . 1 . . . . . . . . . 1 . Processor 4 | . 1 1 1 . . . . . . . 1 . Hackware 1 | . . . . . . . 1 . . . . . Protection 5 | . . . 1 . . . . 1 . 3 . . Artifact . | . . . . . . . . . . . . . Weapon 8 | 1 . . 4 . . . . . . . 2 1 Energy Gun 5 | 1 . . 4 . . . . . . . . . Energy Cannon . | . . . . . . . . . . . . . Ballistic Gun . | . . . . . . . . . . . . . Ballistic Cannon . | . . . . . . . . . . . . . Launcher . | . . . . . . . . . . . . . Special Weapon . | . . . . . . . . . . . . . Impact Weapon 1 | . . . . . . . . . . . 1 . Slashing Weapon 2 | . . . . . . . . . . . 1 1 Piercing Weapon . | . . . . . . . . . . . . . Special Melee Weapon . | . . . . . . . . . . . . . Unidentified Prototypes 6 | . . . 2 . 1 . 1 1 . . . 1 Parts Lost 17 | . . 5 . . . . . 2 1 . 4 5 Power 3 | . . 1 . . . . . 1 . . 1 . Propulsion 10 | . . 1 . . . . . 1 1 . 3 4 Utility 2 | . . 1 . . . . . . . . . 1 Weapon 2 | . . 2 . . . . . . . . . . Highest Loss Streak 5 | . . 5 . . . . . 2 1 . 4 5 To Critical Strikes . | . . . . . . . . . . . . . Average Slot Usage (%) 79 | . 94 61 82 100 100 100 73 68 55 79 50 50 Engine 7 | . 14 14 11 11 11 11 6 2 . . . 1 Leg 1 | . 7 . . . . . . . . . . . Wheel 1 | . 10 3 . . . . . . . . . . Flight 29 | . 9 24 38 44 44 44 26 22 14 28 22 23 Device 5 | . . . . . 6 11 13 17 17 12 5 5 Storage 3 | . 14 3 . . . . . . . . 4 5 Processor 9 | . 9 12 13 22 16 11 6 2 . . 3 5 Hackware 2 | . . . . . . . 6 6 5 5 5 5 Protection 2 | . . . 3 . . . . 3 5 18 1 . Energy Gun 15 | . 28 3 15 22 22 22 13 13 11 11 2 1 Naked Turns . | . . . . . . . . . . . . . Heaviest Build 32 | 12 17 13 9 7 13 11 12 13 10 32 32 25 Greatest Support 39 | 20 20 16 17 17 21 21 21 23 17 39 33 21 Greatest Overweight (x) 4 | . 1 . . . . . . . . . 1 4 Average Overweight (x) . | . . . . . . . . . . . . . Largest Inventory Capacity 15 | 8 10 10 5 5 5 5 5 5 5 5 15 15 Average Capacity 7 | 8 8 6 5 5 5 5 5 5 5 5 14 15 Most Carried 15 | 6 10 10 5 5 5 5 4 5 5 5 15 15 Average Carried 7 | 6 7 4 4 4 4 5 3 4 5 4 12 14 Final Capacity 15 | 8 10 5 5 5 5 5 5 5 5 5 15 15 Final Carried 15 | 6 10 4 5 5 5 5 4 5 5 5 15 15 Class Distribution -------------------- 53% | Mutant 16% | Sprinter 15% | Derelict-Sprinter 14% | Derelict-Mutant Dominant Class ---------------- Mutant | -10/Materials Mutant | -10/Mines Sprinter | -9/Materials Sprinter | -9/Mines Mutant | -7/Zion Mutant | -6/Proximity Caves Mutant | -6/Factory Mutant | -6/DSF Mutant | -5/Factory Derelict-Mutant | -5/Upper Caves Derelict-Sprinter | -5/Upper Caves Derelict-Sprinter | -5/Warlord Resources | -11 -10 -10 -9 -9 -7 -6 -6 -6 -5 -5 -5 -5 ----------- Run | Jun Mat Min Mat Min Zio Pro Fac DSF Fac Upp Upp War Matter Collected 496 | 200 10 40 45 23 67 10 . . . . 99 2 Remotely . | . . . . . . . . . . . . . Salvage Created 511 | . 235 48 119 13 . . . . . . 96 . Parts 37 | . 17 3 9 1 . . . . . . 7 . Haulers Intercepted 3 | . 1 . 2 . . . . . . . . . Recyclers Shooed 1 | . . . 1 . . . . . . . . . Parts Field Recycled . | . . . . . . . . . . . . . Retrieved Matter . | . . . . . . . . . . . . . Parts Self-Destructed 5 | . . . . . . . . . . . 5 . Prevented . | . . . . . . . . . . . . . Kills | -11 -10 -10 -9 -9 -7 -6 -6 -6 -5 -5 -5 -5 ------- Run | Jun Mat Min Mat Min Zio Pro Fac DSF Fac Upp Upp War Combat Hostiles Destroyed 11 | . 5 1 . 1 . . . . . . 4 . Melee 1 | . . . . . . . . . . . 1 . Guns 10 | . 5 1 . 1 . . . . . . 3 . Classes Destroyed 6 | . 5 1 . . . . . . . . . . Builder 2 | . 1 . 1 . . . . . . . . . Hauler 3 | . 1 . 2 . . . . . . . . . Operator 1 | . 1 . . . . . . . . . . . Watcher 2 | . 2 . . . . . . . . . . . Swarmer 10 | . 5 . . 1 . . . . . . 4 . Grunt 1 | . . 1 . . . . . . . . . . Best Kill Streak 6 | . 6 1 1 1 . . . . . . 3 . Combat Bots Only 3 | . 3 1 . 1 . . . . . . 3 . Max Kills in Single Turn 2 | . 1 1 1 1 . . . . . . 2 . Gunslinging 1 | . . . . . . . . . . . 1 . Exploded . | . . . . . . . . . . . . . Melee 1 | . . . . . . . . . . . 1 . Uniques/NPCs Destroyed . | . . . . . . . . . . . . . Combat | -11 -10 -10 -9 -9 -7 -6 -6 -6 -5 -5 -5 -5 -------- Run | Jun Mat Min Mat Min Zio Pro Fac DSF Fac Upp Upp War Damage Taken 1724 | . 129 166 31 11 . . . 151 49 . 489 698 Core 641 | . 26 30 15 . . . . 53 . . 123 394 Absorbed by Shields . | . . . . . . . . . . . . . Redirected to Shielding 109 | . . . . . . . . . 23 . 86 . Core Remaining (%) 91 | 100 . 77 . . . 96 . 93 . . . . Volleys Fired 48 | . 26 4 7 2 2 . . . . . 7 . Largest 2 | . 2 2 2 2 1 . . . . . 2 . Hottest 122 | . 80 80 122 122 61 . . . . . 122 . Shots Fired 91 | . 52 5 14 4 2 . . . . . 14 . Gun 91 | . 52 5 14 4 2 . . . . . 14 . Cannon . | . . . . . . . . . . . . . Launcher . | . . . . . . . . . . . . . Special . | . . . . . . . . . . . . . Kinetic . | . . . . . . . . . . . . . Thermal 32 | . . . 12 4 2 . . . . . 14 . Explosive . | . . . . . . . . . . . . . Electromagnetic 59 | . 52 5 2 . . . . . . . . . Robot Hit Streak 14 | . 4 7 14 4 . . . . . . 5 . Robot Miss Streak 3 | . 3 . 3 . . . . . . . 3 . Penetration Max . | . . . . . . . . . . . . . Secondary Targets 6 | . 3 . 1 . . . . . . . 2 . Max Gunslinging Chain 1 | . 1 . 1 . . . . . . . 1 . Shots Hit Robots 50 | . 25 5 9 2 . . . . . . 8 1 Core Hits 24 | . 10 3 4 1 . . . . . . 5 1 Critical Kills . | . . . . . . . . . . . . . Critical Parts Destroyed . | . . . . . . . . . . . . . Critical Strikes 4 | . . . 1 1 . . . . . . 2 . Burn 3 | . . . . 1 . . . . . . 2 . Corrupt 1 | . . . 1 . . . . . . . . . Melee Attacks 4 | . . . . . . . . . . . 3 1 Impact 1 | . . . . . . . . . . . 1 . Slashing 3 | . . . . . . . . . . . 2 1 Piercing . | . . . . . . . . . . . . . Sneak Attacks 1 | . . . . . . . . . . . . 1 Combat Hostiles . | . . . . . . . . . . . . . Follow-up Attacks . | . . . . . . . . . . . . . Damage Inflicted 966 | . 436 181 155 32 . . . . . . 136 26 Guns 769 | . 393 68 155 32 . . . . . . 121 . Cannons . | . . . . . . . . . . . . . Explosions 156 | . 43 113 . . . . . . . . . . Melee 41 | . . . . . . . . . . . 15 26 Ramming . | . . . . . . . . . . . . . Kinetic . | . . . . . . . . . . . . . Thermal 447 | . 43 113 138 32 . . . . . . 121 . Explosive . | . . . . . . . . . . . . . Electromagnetic 478 | . 393 68 17 . . . . . . . . . Impact . | . . . . . . . . . . . . . Slashing 41 | . . . . . . . . . . . 15 26 Piercing . | . . . . . . . . . . . . . Highest Corruption 1 | . . . . . . . . . . . . 1 Average Corruption 1 | . . . . . . . . . . . . 1 Corruption Purged . | . . . . . . . . . . . . . Corruption Blocked . | . . . . . . . . . . . . . Overload Shots . | . . . . . . . . . . . . . Overflow Damage 22 | . . 22 . . . . . . . . . . Projectiles . | . . . . . . . . . . . . . Explosions 22 | . . 22 . . . . . . . . . . Melee . | . . . . . . . . . . . . . Knockbacks . | . . . . . . . . . . . . . Impact . | . . . . . . . . . . . . . Kinetic . | . . . . . . . . . . . . . Secondary . | . . . . . . . . . . . . . Self-Inflicted Damage 37 | . . 37 . . . . . . . . . . Shots 2 | . . 2 . . . . . . . . . . Rammed . | . . . . . . . . . . . . . Targets Rammed . | . . . . . . . . . . . . . Kicked . | . . . . . . . . . . . . . Crushed . | . . . . . . . . . . . . . Highest Temperature 313 | . 108 74 313 67 83 77 . . . 3 229 5 Average Temperature 52 | . 37 41 173 32 42 39 . . . 1 91 5 Received Heat Transfer 213 | . . 78 9 6 . . . . 9 . . 111 Effects 2 | . . . . . . . . . . . 2 . Interference 2 | . . . . . . . . . . . 2 . Siege Activations . | . . . . . . . . . . . . . Robots Corrupted 1 | . 1 . . . . . . . . . . . Combat Hostiles . | . . . . . . . . . . . . . Parts Fried 4 | . 4 . . . . . . . . . . . Impact Corruptions . | . . . . . . . . . . . . . Robots Melted . | . . . . . . . . . . . . . Combat Hostiles . | . . . . . . . . . . . . . Parts Melted 1 | . . . . . . . . . . . 1 . Heat Transferred 1051 | . 50 150 296 148 . . . . . . 407 . Parts Sabotaged . | . . . . . . . . . . . . . Parts Stolen . | . . . . . . . . . . . . . Parts Stripped . | . . . . . . . . . . . . . Power Chain Reactions 3 | . 1 2 . . . . . . . . . . Missiles Intercepted . | . . . . . . . . . . . . . Alert | -11 -10 -10 -9 -9 -7 -6 -6 -6 -5 -5 -5 -5 ------- Run | Jun Mat Min Mat Min Zio Pro Fac DSF Fac Upp Upp War Peak Influence 295 | . 257 133 203 295 . . 18 15 27 . . . Initial 100 | . . 100 64 78 . . 18 12 7 . . . Average 111 | . 154 106 114 138 . . 18 6 12 . . . Maximum Alert Level 1 | . 1 . 1 1 . . . . . . . . Low Security (%) 85 | 100 71 100 97 78 . . 100 100 100 . . . Level 1 14 | . 28 . 2 21 . . . . . . . . Level 2 . | . . . . . . . . . . . . . Level 3 . | . . . . . . . . . . . . . Level 4 . | . . . . . . . . . . . . . Level 5 . | . . . . . . . . . . . . . High Security . | . . . . . . . . . . . . . Max Security . | . . . . . . . . . . . . . Squads Dispatched 2 | . 1 1 . . . . . . . . . . Investigation 2 | . 1 1 . . . . . . . . . . Extermination . | . . . . . . . . . . . . . Reinforcement . | . . . . . . . . . . . . . Assault . | . . . . . . . . . . . . . Garrison . | . . . . . . . . . . . . . Intercept . | . . . . . . . . . . . . . Searches Triggered . | . . . . . . . . . . . . . Construction Impeded . | . . . . . . . . . . . . . Haulers Reinforced . | . . . . . . . . . . . . . Active Scanning Responses . | . . . . . . . . . . . . . Cargo Convoy Interrupts . | . . . . . . . . . . . . . Stealth | -11 -10 -10 -9 -9 -7 -6 -6 -6 -5 -5 -5 -5 --------- Run | Jun Mat Min Mat Min Zio Pro Fac DSF Fac Upp Upp War Distress Signals 3 | . . . 3 . . . . . . . . . Communications Jammed . | . . . . . . . . . . . . . Distress Signals . | . . . . . . . . . . . . . Times Spotted 63 | . 10 9 8 6 . 3 . 1 2 . 5 19 Peak Tracking Total 25 | . 4 18 8 6 . 3 . 1 2 . 5 25 Tactical Retreats 9 | . 1 2 2 2 . 1 . 1 . . . . Traps | -11 -10 -10 -9 -9 -7 -6 -6 -6 -5 -5 -5 -5 ------- Run | Jun Mat Min Mat Min Zio Pro Fac DSF Fac Upp Upp War Traps Triggered 1 | . 1 . . . . . . . . . . . Indirectly . | . . . . . . . . . . . . . Trap Hack Attempts . | . . . . . . . . . . . . . Triggered . | . . . . . . . . . . . . . Disarmed . | . . . . . . . . . . . . . Reprogrammed . | . . . . . . . . . . . . . Reused . | . . . . . . . . . . . . . Traps Extracted . | . . . . . . . . . . . . . Installed . | . . . . . . . . . . . . . Triggered . | . . . . . . . . . . . . . Machines | -11 -10 -10 -9 -9 -7 -6 -6 -6 -5 -5 -5 -5 ---------- Run | Jun Mat Min Mat Min Zio Pro Fac DSF Fac Upp Upp War Machines Disabled 4 | . 2 . . 1 . . . . . . 1 . Max in Single Turn 1 | . 1 . . 1 . . . . . . 1 . Machines Repaired . | . . . . . . . . . . . . . Machines Sabotaged . | . . . . . . . . . . . . . Overloaded Fab Kills . | . . . . . . . . . . . . . Hacking | -11 -10 -10 -9 -9 -7 -6 -6 -6 -5 -5 -5 -5 --------- Run | Jun Mat Min Mat Min Zio Pro Fac DSF Fac Upp Upp War Machines Accessed 8 | . 1 1 1 . . . 2 . . 1 . 2 Terminals 3 | . 1 1 . . . . 1 . . . . . Fabricators 1 | . . . . . . . 1 . . . . . Repair Stations . | . . . . . . . . . . . . . Recycling Units 1 | . . . 1 . . . . . . . . . Scanalyzers . | . . . . . . . . . . . . . Garrison Access . | . . . . . . . . . . . . . Total Hacks 16 | . 4 2 1 . . . 3 . . 1 . 5 Successful 11 | . 1 1 1 . . . 2 . . 1 . 5 Failed 5 | . 3 1 . . . . 1 . . . . . Catastrophic 2 | . 1 1 . . . . . . . . . . Database Lockouts . | . . . . . . . . . . . . . Manual 6 | . 4 1 . . . . 1 . . . . . Terminals 7 | . 4 2 . . . . 1 . . . . . Fabricators 2 | . . . . . . . 2 . . . . . Repair Stations . | . . . . . . . . . . . . . Recycling Units 1 | . . . 1 . . . . . . . . . Scanalyzers . | . . . . . . . . . . . . . Garrison Access . | . . . . . . . . . . . . . Terminal Hacks 9 | . 1 1 . . . . 1 . . 1 . 5 Record 5 | . . . . . . . . . . . . 5 Open Door 1 | . . . . . . . . . . 1 . . Open DSF 1 | . . . . . . . 1 . . . . . Branch Access Points 1 | . 1 . . . . . . . . . . . Zone Layout 1 | . . 1 . . . . . . . . . . Fabricator Hacks 1 | . . . . . . . 1 . . . . . Build 1 | . . . . . . . 1 . . . . . Repair Station Hacks . | . . . . . . . . . . . . . Recycling Unit Hacks 1 | . . . 1 . . . . . . . . . Report Inventory 1 | . . . 1 . . . . . . . . . Scanalyzer . | . . . . . . . . . . . . . Garrison Access Hacks . | . . . . . . . . . . . . . Unauthorized Hacks . | . . . . . . . . . . . . . Terminals . | . . . . . . . . . . . . . Fabricators . | . . . . . . . . . . . . . Repair Stations . | . . . . . . . . . . . . . Recycling Units . | . . . . . . . . . . . . . Scanalyzers . | . . . . . . . . . . . . . Garrison Access . | . . . . . . . . . . . . . Data Cores Recovered 1 | . 1 . . . . . . . . . . . Used . | . . . . . . . . . . . . . Hacking Detections 4 | . 1 1 . . . . 2 . . . . . Full Trace Events 1 | . . 1 . . . . . . . . . . Feedback Events . | . . . . . . . . . . . . . Feedback Blocked . | . . . . . . . . . . . . . Robot Schematics Acquired 3 | . . . . . 3 . . . . . . . Robots Built . | . . . . . . . . . . . . . Authchips . | . . . . . . . . . . . . . Time . | . . . . . . . . . . . . . Total Robot Build Rating . | . . . . . . . . . . . . . Part Schematics Acquired 16 | . . . . . 16 . . . . . . . Parts Built 1 | . . . . . . . 1 . . . . . Authchips . | . . . . . . . . . . . . . Time 95 | . . . . . . . 95 . . . . . Total Part Build Rating 5 | . . . . . . . 5 . . . . . Parts Repaired . | . . . . . . . . . . . . . Time . | . . . . . . . . . . . . . Parts Recycled . | . . . . . . . . . . . . . Recycled Matter . | . . . . . . . . . . . . . Retrieved Matter . | . . . . . . . . . . . . . Retrieved Components . | . . . . . . . . . . . . . Parts Scanalyzed . | . . . . . . . . . . . . . Part Schematics Acquired . | . . . . . . . . . . . . . Parts Damaged . | . . . . . . . . . . . . . Bothacking | -11 -10 -10 -9 -9 -7 -6 -6 -6 -5 -5 -5 -5 ------------ Run | Jun Mat Min Mat Min Zio Pro Fac DSF Fac Upp Upp War Used RIF Installer . | . . . . . . . . . . . . . Robots Hacked . | . . . . . . . . . . . . . Non-combat . | . . . . . . . . . . . . . Combat . | . . . . . . . . . . . . . Robot Hacks Applied . | . . . . . . . . . . . . . Relay Couplers Released . | . . . . . . . . . . . . . Fabnet Peak Effective % . | . . . . . . . . . . . . . Robots Rewired . | . . . . . . . . . . . . . Allies Hacked . | . . . . . . . . . . . . . Hacks Repelled . | . . . . . . . . . . . . . Allies | -11 -10 -10 -9 -9 -7 -6 -6 -6 -5 -5 -5 -5 -------- Run | Jun Mat Min Mat Min Zio Pro Fac DSF Fac Upp Upp War Total Allies 12 | . . 1 . 3 8 . . . . . . . Largest Group 8 | . . 1 1 3 8 8 . . . . . . Highest-Rated Group 264 | . . 31 31 40 264 264 . . . . . . Highest-Rated Ally 40 | . . 31 31 16 40 40 . . . . . . Total Orders 1 | . . . . . . . 1 . . . . . RETURN 1 | . . . . . . . 1 . . . . . Ally Attacks 44 | . . 3 10 27 . 4 . . . . . . Total Damage 475 | . . 44 147 222 . 62 . . . . . . Kills 10 | . . 2 2 6 . . . . . . . . Allies Corrupted . | . . . . . . . . . . . . . Allies Melted . | . . . . . . . . . . . . . Intel | -11 -10 -10 -9 -9 -7 -6 -6 -6 -5 -5 -5 -5 ------- Run | Jun Mat Min Mat Min Zio Pro Fac DSF Fac Upp Upp War Robot Analysis Total . | . . . . . . . . . . . . . Derelict Logs Recovered 5 | . . 1 . . 2 . . . . 1 1 . Drone Launches 1 | . . . . . . . 1 . . . . . Drone Recoveries 1 | . . . . . . . 1 . . . . . Exploration | -11 -10 -10 -9 -9 -7 -6 -6 -6 -5 -5 -5 -5 ------------- Run | Jun Mat Min Mat Min Zio Pro Fac DSF Fac Upp Upp War Turns Passed 2155 | 9 349 86 118 132 436 99 116 45 21 229 314 201 Spaces Moved 3124 | 7 226 175 226 356 803 290 39 99 55 266 293 289 Core . | . . . . . . . . . . . . . Treads . | . . . . . . . . . . . . . Legs 51 | 7 44 . . . . . . . . . . . Wheels 185 | . 182 3 . . . . . . . . . . Hover . | . . . . . . . . . . . . . Flight 2888 | . . 172 226 356 803 290 39 99 55 266 293 289 Fastest Speed 31 | 120 100 37 31 31 31 34 34 34 37 37 32 32 Average Speed 40 | 120 110 38 32 31 33 34 34 37 38 37 35 35 Slowest Speed 320 | 120 120 100 34 31 34 34 34 39 39 39 127 320 Overloaded Moves . | . . . . . . . . . . . . . Propulsion Burnouts . | . . . . . . . . . . . . . Robots Hopped 6 | . . 2 1 2 . . . . . . . 1 Cave-ins Triggered . | . . . . . . . . . . . . . Exploration Rate (%) 46 | 2 61 39 32 79 88 63 2 90 2 50 48 54 Regions Visited 12 Branch Regions 7 Pre-discovered Areas 2 | . . . . . 1 . . . . 1 . . Known Exits Taken 6 | . 1 1 . . . 1 1 . 1 . 1 . Unknown Exits Taken 5 | 1 . . 1 1 1 . . . . 1 . . Scrap Searched 11 | . . . . 1 4 4 . . . . 2 . Spaces Dug . | . . . . . . . . . . . . . Terrain Destroyed 8 | . 1 7 . . . . . . . . . . Melee . | . . . . . . . . . . . . . Projectile . | . . . . . . . . . . . . . AOE 8 | . 1 7 . . . . . . . . . . Terrain Rammed . | . . . . . . . . . . . . . Walls Destroyed . | . . . . . . . . . . . . . Machines Disabled . | . . . . . . . . . . . . . Actions | -11 -10 -10 -9 -9 -7 -6 -6 -6 -5 -5 -5 -5 --------- Run | Jun Mat Min Mat Min Zio Pro Fac DSF Fac Upp Upp War Total 3917 | 7 274 189 253 371 968 289 141 106 54 393 485 387 Wait 631 | . 2 1 5 12 147 . 99 . . 118 160 87 Move 3101 | 6 225 170 223 351 802 289 39 98 54 265 292 287 Hop 6 | . . 2 1 2 . . . . . . . 1 Pick Up 36 | . 9 2 5 2 5 . 1 2 . . 8 2 Fast Attach 22 | . 2 . 5 . 3 . . 3 . 7 2 . Attach 16 | . . 4 3 . 1 . 2 . . . 4 2 Detach 8 | . . . . . . . . . . 1 6 1 Swap 5 | 1 3 . . . . . . . . . 1 . Drop 40 | . 7 6 4 2 8 . . 3 . 2 2 6 Fire 48 | . 26 4 7 2 2 . . . . . 7 . Melee 4 | . . . . . . . . . . . 3 1 Ram . | . . . . . . . . . . . . . Kick . | . . . . . . . . . . . . . Crush . | . . . . . . . . . . . . . Escape Stasis . | . . . . . . . . . . . . . Rewire . | . . . . . . . . . . . . . Trap . | . . . . . . . . . . . . . Miscellaneous . | . . . . . . . . . . . . . Route ------- -11/Junkyard -10/Materials (discovered 2 exits: *Mat / *Min) -10/Mines (discovered 2 exits: *Mat x2) -9/Materials (discovered 2 exits: [*Min] / [*Sto]) -9/Mines (discovered 2 exits: [*Mat] / [*Zio]) -7/Zion -6/Proximity Caves -6/Factory (discovered 3 exits: Fac x2 / DSF) -6/DSF -5/Factory (discovered 2 exits: [*Fac] / *Upp) -5/Upper Caves -5/Upper Caves -5/Warlord History --------- Turn | Location | Event 1 | -11/Junkyard | Discovered new exit (range 3) 10 | -11/Junkyard | Entered Materials 147 | -10/Materials | Discovered new exit (range 13) 168 | -10/Materials | Identified exit to Mines 310 | -10/Materials | Build established: Mutant 359 | -10/Materials | Entered Mines 406 | -10/Mines | Lost 5 parts (1p1n1u2w) 409 | -10/Mines | Assembled infested the area 414 | -10/Mines | Assisted by a Guerilla fighting off Assembled 431 | -10/Mines | Met a Derelict bent on vengeance 438 | -10/Mines | Met a Derelict testing a Signal Generator 439 | -10/Mines | Identified exit to Materials 441 | -10/Mines | Discovered exit to Materials (range 8) 442 | -10/Mines | Found Signal Generator 445 | -10/Mines | Entered Materials 445 | -9/Materials | Accompanied by 1 ally 445 | -9/Materials | Evolved 2 slots: Propulsion x2 519 | -9/Materials | Discovered new exit (range 10) 537 | -9/Materials | Discovered new exit (range 16) 563 | -9/Materials | Entered Mines 639 | -9/Mines | Assisted by bots powering up and referring to "LRC-V3" 685 | -9/Mines | Discovered new exit (range 5) 687 | -9/Mines | A Derelict revealed a hidden shortcut to a safe place 695 | -9/Mines | Entered Zion 705 | -7/Zion | Given the Hacking Drone Bay 706 | -7/Zion | Found Prototype Device 718 | -7/Zion | Discovered new exit (range 12) 782 | -7/Zion | Learned location of 2 exits from Factory 791 | -7/Zion | Learned Factory emergency access door positions 794 | -7/Zion | Found CR-A16's Pointy Stick 815 | -7/Zion | Gained Derelict followers 851 | -7/Zion | Imprinted 853 | -7/Zion | Declared Zion's savior 894 | -7/Zion | Found Prototype Device 894 | -7/Zion | Identified Mobile Refinery Mk. CCLXVII 950 | -7/Zion | Found GAL Module 1131 | -7/Zion | Entered Proximity Caves 1131 | -6/Proximity Caves | Accompanied by 8 allies 1132 | -6/Proximity Caves | Identified exit to Factory 1230 | -6/Proximity Caves | Entered Factory 1230 | -6/Factory | Evolved 6 slots: Power x1, Propulsion x2, Utility x3 1231 | -6/Factory | Identified exit to Factory 1234 | -6/Factory | Identified Hacking Drone Bay 1334 | -6/Factory | Fabricated Imp. Proton Missile Launcher (x1) 1346 | -6/Factory | Identified exit to DSF 1346 | -6/Factory | Entered DSF 1371 | -6/DSF | Additional patrols routed to DSF 1384 | -6/DSF | Discovered exit to Factory (range 16) 1391 | -6/DSF | Entered Factory 1391 | -5/Factory | Evolved 2 slots: Utility x2 1392 | -5/Factory | Identified exit to Upper Caves 1405 | -5/Factory | Discovered new exit (range 5) 1412 | -5/Factory | Entered Upper Caves 1621 | -5/Upper Caves | Learned location of Warlord (-5) 1637 | -5/Upper Caves | Discovered new exit (range 10) 1641 | -5/Upper Caves | Entered another Upper Caves area 1669 | -5/Upper Caves | Learned 8 Factory zone layouts 1732 | -5/Upper Caves | Lost 4 parts (1p3n) 1942 | -5/Upper Caves | Found Alien Artifact 1951 | -5/Upper Caves | Discovered new exit (range 15) 1955 | -5/Upper Caves | Identified exit to Warlord 1955 | -5/Upper Caves | Entered Warlord 2057 | -5/Warlord | Build established: Derelict-Sprinter 2085 | -5/Warlord | Identified Dimensional Node Initializer 2085 | -5/Warlord | Initialized slip node 2088 | -5/Warlord | Found Signal Generator 2090 | -5/Warlord | Found Signal Generator 2141 | -5/Warlord | Attacked by Warlord forces 2141 | -5/Warlord | Spotted ZV-9FC(L) 2150 | -5/Warlord | Spotted PX-6WU(K) 2151 | -5/Warlord | Spotted 25-N9D(K) 2156 | -5/Warlord | Core integrity fell below 50% 2156 | -5/Warlord | Self-destructed Last Messages --------------- 02122_ Dropped Backup Power III. 02140_ Sneak attack on ZV-9FC(L). 02141_ ANNOUNCEMENT: Internal threat detected, destroy unregistered bots on sight. 02143_ ZV-9FC(L) springs to life. 02144_ F8-J1O(g) knocked back. 02150_ Chain reaction triggered in Fission Core. 02150_ VTOL Module destroyed. 02151_ Critical hit (Burn: +37). 02151_ VTOL Module destroyed. 02152_ Mak. Flight Unit destroyed. 02152_ Penetrated by HV Slug. 02152_ HV Slug penetrates ZV-9FC(L). 02152_ HV Slug penetrates Wall. 02153_ Imp. Flight Unit destroyed. 02154_ Hacking Drone Bay destroyed. 02154_ Critical hit (Burn: +37). 02155_ Penetrated by HV Slug. 02155_ HV Slug penetrates ZV-9FC(L). 02156_ Acquired 2 matter. Map ----- +----------------------------------------------------+ | | | | | | | | | ?????????????????????????????????????????????????? | | ?????????????????????????????????????????????????? | | ??????????######?????????????????????????????????? | | ??????????# #?????????????????????????????????? | | ??????????# #?????????????????????????????????? | | ???######?# #?????????????????????????????????? | | ???# # #?????????????????????????????????? | | ???# ###//##########????????????????????????? | | ???#""" + / #????????????????????????? | | ???#""" #### #### #????????????????????????? | | ???#""" ???# #??# #????????????????????????? | | ???# ????# #??# #????????????????????????? | | ???######????# #??# #????????????????????????? | | ????????????## #### // #????????????????????????? | | ????????????# / ! / #????????????????????????? | | ????????????## ## !! #????????????????????????? | | ?????????????# ## #????????????????????????? | | ????????###### ## ##???????##??????????????? | | ????????# # # "#?????""""""""??????????? | | ????????# # *## %"#??? g "#?????????? | | ????????#[ / # *###;;;b### g g "#?????????? | | ????????#[[ / ## bL@g K "#?????????? | | ????????######^^ ## ; W ""??????????? | | ?????????????# ^ ## g M ; K "#?????????? | | ?????????????# ##Y ### gg g "??????????? | | ?????????????# # #?? "?###??????? | | ?????????????# ## #???"""""""""""?# ?????? | | ?????????????# ## #???#######?????# """ ""?? | | ?????????????# ## #??????######???# """ """? | | ?????????????# #??????# #???# """ """ | | ?????????????# #??????# #???# """ """ | | ?????????????# #??????# #???# """ """ | | ?????????????# """ #??????# ?????# | | ?????????????# """ #????###+##?????# | | ???????## #### """ ###### #######+######## | | ????# ^^ | | ????# | | ????###+###########+########## ######### #### | | ????????????????## ####?????# ##???????######+# | | ????????????????#! """#?????# #?????????# | | ????????????????#! X""#?????# #?????????# | | ????????????????#! ""#????# #?????????# | | ????????????????#" X !!#????## #?????????# | | ????????????????##"""!!#?????# ?????????# | | ?????????????????#######?????# #?????????# | | ?????????????????????????????# #?????????# | +----------------------------------------------------+ Best States ------------- Heat Dissipation 40 Energy Generation 19 Energy Capacity 315 Matter Stores 300 Matter Capacity 300 Sight Range 16 Terrain Scan Density 10 Additional Mass Support 6 Armor Coverage 300 Propulsion Shielding 33 Weapon Shielding 90 Evasion (%) 63 Targeting Accuracy 6 Particle Charging 20 Offensive Hacking 11 Item Schematics ----------------- Gravmag System | -7/Zion | Archive Energy Well | -7/Zion | Archive Shock Absorption System | -7/Zion | Archive Power Amplifier | -7/Zion | Archive Arm. Huge Wheel | -7/Zion | Archive Mak. Cloaking Device | -7/Zion | Archive Gauss Cannon | -7/Zion | Archive Field Propulsion Drive | -7/Zion | Archive KE Penetrator | -7/Zion | Archive Lyr. Light Armor Plating | -7/Zion | Archive Imp. Hacking Suite | -7/Zion | Archive Hvy. Plasma Cannon | -7/Zion | Archive Energy Filter | -7/Zion | Archive Hvy. Ion Cannon | -7/Zion | Archive Imp. Trap Scanner | -7/Zion | Archive Hvy. Mass Driver | -7/Zion | Archive Robot Schematics ------------------ R-06 Scavenger | -7/Zion | Archive B-48 Gladiator | -7/Zion | Archive G-47 Trooper | -7/Zion | Archive Fabricated ------------ Imp. Proton Missile Launcher | x1 | -6/Factory | Preloaded Alien Tech Used ----------------- Dimensional Node Initializer Achievements -------------- None Challenges ------------ None Game ------ Seed DispersionLargeNetwork Manual? 0 Play Time 00:32:04 Cumulative 420.0 hours Start 2023.03.06 @ 07:49:13 End 2023.03.06 @ 08:18:00 Sessions 1 Manual Loads 0 Difficulty Rogue Special Mode None Game No. 476 Rogue 476 Adventurer 0 Explorer 0 Win Type - Total 0 Types 0/0/0/0/0/0/0/0/0 Lore% 55 Gallery% 77 Achievement% 63 Wizard Run 0 Options --------- ASCII 0 Keyboard 0 Movement Mouse Keybinds 0 Fullscreen 2 Font 24/Smallcaps Map View 76x50 Tactical HUD 1 Map Filters NONE Filters NONE Steam 1 RUN: 3c0bbc01-af96-4659-bb25-1f6a4716f25f